[Event "Mitropa Cup Open 2024"]
[Site "Apolda"]
[Date "2024.02.19"]
[Round "5.18"]
[White "Ivekovic, Bozidar"]
[Black "Svane, Rasmus"]
[Result "1-0"]
[ECO "B90"]
[WhiteElo "2399"]
[BlackElo "2637"]
[Annotator "TA"]
[PlyCount "81"]
[EventDate "2024.02.15"]
[EventType "team-tourn"]
[EventCountry "GER"]
[SourceTitle "playchess.com"]
[Source "ChessBase"]
[SourceQuality "1"]
[WhiteTeam "Croatia"]
[BlackTeam "Germany"]
[WhiteTeamCountry "CRO"]
[BlackTeamCountry "GER"]
[TimeControl "40/5400+30:1800+30"]

{[%evp 15,81,29,33,6,9,21,0,11,30,8,37,-21,0,0,99,102,92,100,101,46,83,86,110,86,100,108,103,95,99,101,101,79,99,95,106,36,29,39,31,10,41,0,28,0,0,0,0,0,6,-29,0,0,89,83,116,109,130,127,117,127,178,182,501,488,545,558,1021,986]} 1. e4 {[%emt 0:00:09]} c5 {[%emt 0:00:15]} 2. Nf3 {[%emt 0:00:09]} d6 {[%emt 0:00:08]} 3. d4 {[%emt 0:00:05]} cxd4 {[%emt 0:00:09]} 4. Nxd4 {[%emt 0:00:02]} Nf6 {[%emt 0:00:13]} 5. Nc3 {[%emt 0:00:04]} a6 {[%emt 0:00:09]} 6. Be3 {[%emt 0:00:07]} e5 {[%emt 0:00:19]} 7. Nb3 {[%emt 0:00:05]} Be6 {[%emt 0:00:22]} 8. f3 {[%emt 0:00:04]} h5 {[%emt 0:00:20]} 9. a4 {[%emt 0:00:06]} Nc6 {[%emt 0:13:26]} 10. Nd5 {[%emt 0:11:49] Against Nb4} Bxd5 {[%emt 0:03:26]} 11. exd5 {[%emt 0:00:09] The position is equal.} Ne7 {[%emt 0:09:42]} 12. c4 {[%emt 0:01:21]} g6 {[%emt 0:03:01]} 13. Be2 {[%emt 0:12:58]} (13. Bd3 $14) 13... Bg7 {[%emt 0:08:47]} 14. a5 {[%emt 0:03:57]} e4 {[%emt 0:14:56]} (14... Nf5 $11 15. Bb6 Qd7) 15. fxe4 {[%emt 0:11:04]} Nxe4 {[%emt 0:00:24][%cal Oe7f5] And now ...Nf5! would win.} 16. Bb6 {[%emt 0:00:03]} Qd7 {[%emt 0:03:05]} 17. Bd4 {[%emt 0:00:27]} ({White should play} 17. O-O $16) 17... Nf6 {[%emt 0:06:16]} 18. Bd3 $1 {[%emt 0:07:55] Hoping for 0-0. A strong pair of Bishops.} O-O {[%emt 0:04:41]} 19. O-O {[%emt 0:05:08]} Ng4 {[%emt 0:00:05]} 20. Bxg7 $1 {[%emt 0:00:07]} Kxg7 {[%emt 0:00:07]} 21. Qd2 {[%emt 0:01:39] Dodges Ne3} Ng8 {[%emt 0:05:48]} 22. Nd4 {[%emt 0:02:20]} Rae8 {[%emt 0:04:18]} 23. Rf4 {[%emt 0:02:18][%cal Od3f5]} Qe7 {[%emt 0:03:42]} 24. h3 {[%emt 0:03:46]} N4f6 {[%emt 0:03:06]} 25. Raf1 {[%emt 0:06:11] White is much more active.} (25. Bxg6 $16 Kxg6 (25... fxg6 26. Ne6+ Kh8 27. Raf1 $16) 26. Nf5) 25... Qe3+ $14 {[%emt 0:00:24]} 26. Qxe3 {[%emt 0:00:02]} Rxe3 {[%emt 0:00:08]} 27. Bc2 {[%emt 0:00:56]} Rfe8 {[%emt 0:03:01]} 28. Kh2 {[%emt 0:01:24]} R8e7 {[%emt 0:01:07]} 29. b4 {[%emt 0:02:06]} Rc3 {[%emt 0:03:49]} 30. Bb1 {[%emt 0:05:43][%cal Bc2b1,Bb1a2,Ba2b3][%mdl 32]} Rce3 {[%emt 0:01:42]} (30... Rxc4 $2 {perishes.} 31. Nf5+ gxf5 32. Rxc4 $18) 31. R1f2 {[%emt 0:04:53]} Re1 {[%emt 0:01:36]} 32. Ba2 {[%emt 0:01:40]} Rc1 {[%emt 0:03:05]} 33. c5 {[%emt 0:04:46]} dxc5 {[%emt 0:01:28]} (33... Ree1 $1 $11 {keeps the balance.} 34. cxd6 Rh1+ 35. Kg3 g5 36. Nf5+ Kg6 37. Ne7+ Kg7 38. Nf5+ Kg6 39. Ne7+ Kg7 40. Nf5+) 34. Nb3 $1 $36 {[%emt 0:03:47][%csl LRc1,LRc5][%mdl 2048] Keeping Black busy.} Rd1 {[%emt 0:00:31]} 35. Nxc5 {[%emt 0:00:04] Threatens to win with Bb3.} g5 {[%emt 0:02:39][%cal Bg6g5,Bg5g4][%mdl 32]} 36. Rf5 {[%emt 0:03:13]} g4 {[%emt 0:00:05] [#]} 37. Bb3 $1 {[%emt 0:01:14]} Rd4 {[%emt 0:00:49] [#]} (37... Rc1 $16 {was called for.}) 38. R5f4 $1 $18 {[%emt 0:00:44]} Ne4 $2 {[%emt 0:01:40]} (38... Rxf4 39. Rxf4 Re1) 39. Nxe4 {[%emt 0:01:43] White is clearly winning.} Rdxe4 {[%emt 0:00:19]} 40. d6 {[%emt 0:02:20][%csl LRe7,LRf7]} Re3 {[%emt 0:00:49]} 41. hxg4 {[%emt 0:32:38] Weighted Error Value: White=0.11 (very precise) /Black=0.33.  Mistake:       	White=3     	Black=4      Inaccurate:     	White=3     	Black=7      OK:         	White=8     	Black=6      Best:        	White=6     	Black=1      Strong:       	White=5     	---} 1-0

[Event "Mitropa Cup Open 2024"]
[Site "Apolda"]
[Date "2024.02.19"]
[Round "5.19"]
[White "Donchenko, Alexander"]
[Black "Tomulic, Teo"]
[Result "1-0"]
[ECO "C42"]
[WhiteElo "2643"]
[BlackElo "2386"]
[Annotator "TA"]
[PlyCount "119"]
[EventDate "2024.02.15"]
[EventType "team-tourn"]
[EventCountry "GER"]
[SourceTitle "playchess.com"]
[Source "ChessBase"]
[SourceQuality "1"]
[WhiteTeam "Germany"]
[BlackTeam "Croatia"]
[WhiteTeamCountry "GER"]
[BlackTeamCountry "CRO"]
[TimeControl "40/5400+30:1800+30"]

{[%evp 30,119,28,45,25,31,52,27,16,0,34,22,30,33,28,0,0,0,2,0,0,0,0,0,0,0,0,0,0,0,0,0,0,-7,0,-3,1,4,26,17,23,20,27,20,23,29,30,29,29,31,32,33,31,25,33,13,20,32,143,121,144,124,174,175,226,222,235,106,172,164,161,115,93,26,104,118,5600,5600,5398,5225,5065,2258,2242,1807,1425,1379,29968,29969,29962,29965,29981,29979]} 1. e4 {[%emt 0:00:03]} e5 {[%emt 0:00:42]} 2. Nf3 {[%emt 0:00:07]} Nf6 {[%emt 0:00:04]} 3. Nxe5 {[%emt 0:00:58]} d6 {[%emt 0:00:05]} 4. Nf3 {[%emt 0:00:06]} Nxe4 {[%emt 0:00:05]} 5. Nc3 {[%emt 0:00:45]} Nxc3 {[%emt 0:00:06]} 6. dxc3 {[%emt 0:00:04]} Nc6 {[%emt 0:00:57]} 7. Be3 {[%emt 0:02:14] C42: Petroff Defence: 3 Nxe5 and unusual White 3rd moves.} Be7 {[%emt 0:05:23]} 8. Bd3 {[%emt 0:02:08]} Be6 {[%emt 0:05:17]} 9. Qe2 {[%emt 0:01:18]} Bf6 {[%emt 0:07:04]} 10. O-O-O {[%emt 0:08:03]} Qe7 {[%emt 0:00:22]} 11. Kb1 {[%emt 0:06:06]} a6 {[%emt 0:00:19]} 12. h3 {[%emt 0:07:52]} h6 $146 {[%emt 0:10:51]} ({Predecessor:} 12... O-O-O 13. Rhe1 h5 14. Nd2 Ne5 15. Bxa6 bxa6 16. f4 Nc6 17. Qxa6+ Kd7 18. f5 Bxf5 {0-1 Nijboer,F (2510)-Kashlinskaya,A (2459) Amsterdam Batavia Grolsch 10th 2018 (1)}) 13. Rhe1 {[%emt 0:05:51]} O-O-O {[%emt 0:06:44]} 14. Nd2 {[%emt 0:08:22]} Bg5 {[%emt 0:22:57]} 15. f4 {[%emt 0:05:54]} Bh4 {[%emt 0:00:06]} 16. Bf2 {[%emt 0:00:56]} Bxf2 {[%emt 0:05:02]} 17. Qxf2 {[%emt 0:00:15]} Qf8 {[%emt 0:00:13]} 18. Qf1 {[%emt 0:09:47]} Kb8 {[%emt 0:02:23]} 19. Nf3 {[%emt 0:07:08]} Bc8 {[%emt 0:03:26]} 20. Be4 {[%emt 0:02:03]} Ne7 {[%emt 0:06:30]} 21. Nd4 {[%emt 0:00:34]} Ng8 {[%emt 0:04:08]} 22. c4 {[%emt 0:06:19]} Nf6 {[%emt 0:00:38]} 23. Bf3 {[%emt 0:00:13]} Re8 {[%emt 0:01:27]} 24. Rd3 {[%emt 0:01:27]} Nd7 {[%emt 0:04:29]} 25. Rde3 {[%emt 0:01:19]} Rxe3 {[%emt 0:00:32]} 26. Rxe3 {[%emt 0:00:03]} Qd8 {[%emt 0:03:14]} 27. Qe1 {[%emt 0:06:33]} Qf6 {[%emt 0:01:06]} 28. Ne2 {[%emt 0:00:17]} Nc5 {[%emt 0:01:06]} 29. Qc3 {[%emt 0:03:28]} Qxc3 {[%emt 0:01:10]} 30. Nxc3 {[%emt 0:00:03]} Ne6 {[%emt 0:05:58]} 31. Ne2 {[%emt 0:01:20]} Bd7 {[%emt 0:00:41]} 32. Kc1 {[%emt 0:02:32]} Re8 {[%emt 0:00:21]} 33. Kd2 {[%emt 0:00:36]} Nc5 {[%emt 0:00:58]} 34. Bd5 {[%emt 0:01:55]} Rxe3 {[%emt 0:00:45]} 35. Kxe3 {[%emt 0:00:02]} Be8 {[%emt 0:00:45]} 36. g4 {[%emt 0:01:44]} c6 {[%emt 0:00:21]} 37. Bf3 {[%emt 0:00:53]} Kc7 {[%emt 0:00:07]} 38. h4 {[%emt 0:02:30]} Kd8 {[%emt 0:01:24]} 39. Ng3 {[%emt 0:01:55]} g6 {[%emt 0:00:33]} 40. b4 {[%emt 0:02:34]} Nd7 {[%emt 0:00:39]} 41. Ne4 {[%emt 0:31:07]} Ke7 {[%emt 0:30:52]} 42. c5 {[%emt 0:00:00]} dxc5 {[%emt 0:00:00]} 43. bxc5 {[%emt 0:00:00]} (43. Nxc5 Nxc5 44. bxc5 Bd7 $15) 43... b6 {[%emt 0:00:00]} (43... f6 $1 $14) 44. cxb6 $16 {[%emt 0:00:00]} Nxb6 {[%emt 0:00:00]} 45. Nc5 {[%emt 0:00:00]} Kd6 {[%emt 0:00:00]} (45... a5 $16) 46. Kd4 $18 {[%emt 0:00:00]} (46. Nxa6 c5 $11) 46... f6 {[%emt 0:00:00]} (46... Nd7 $142 47. Ne4+ (47. Nxa6 c5+ 48. Kc3 Nb6 $17) 47... Kc7) 47. c4 $1 $18 {[%emt 0:00:00]} (47. Nxa6 Na4 $15) 47... Nd7 {[%emt 0:00:00]} 48. Ne4+ {[%emt 0:00:00]} (48. Nxa6 $2 {is the wrong capture.} c5+ 49. Kd3 g5 50. hxg5 fxg5 $19) (48. Nxd7 $1 $18 Bxd7 49. c5+ Ke7 50. Kc3) 48... Kc7 {[%emt 0:00:00] [#]} (48... Ke7 $16 {was worth a try.}) 49. g5 $1 $18 {[%emt 0:00:00]} hxg5 {[%emt 0:00:00]} 50. hxg5 {[%emt 0:00:00]} (50. fxg5 $18 fxg5 51. Nxg5) 50... fxg5 $16 {[%emt 0:00:02]} 51. fxg5 {[%emt 0:00:00]} (51. Nxg5 $16 a5 52. Be2) 51... Bf7 {[%emt 0:01:17] [#]} (51... Nf8 $11 {remains equal.}) 52. Nc5 $1 $16 {[%emt 0:00:00]} Nxc5 $4 {[%emt 0:04:48][%mdl 8192]} (52... Nf8 $16) 53. Kxc5 $18 {[%emt 0:00:02]} Be6 {[%emt 0:00:29]} 54. Be4 {[%emt 0:00:43]} (54. Bxc6 Bxc4 55. a3 Bd3 $11) 54... Bf7 {[%emt 0:00:04]} 55. a3 {[%emt 0:00:50]} ({Weaker is} 55. Bxc6 Bxc4 56. a3 Bd3 $14) 55... Be8 {[%emt 0:00:36]} 56. Bf3 {[%emt 0:03:02]} Bd7 {[%emt 0:00:35]} 57. Be2 {[%emt 0:01:01]} Bc8 {[%emt 0:00:47]} 58. Bd3 {[%emt 0:00:08]} Be6 {[%emt 0:00:25]} 59. Bxg6 {[%emt 0:00:09]} Bg8 {[%emt 0:00:02]} 60. Be8 {[%emt 0:00:15]} 1-0

[Event "Mitropa Cup Open 2024"]
[Site "Apolda"]
[Date "2024.02.19"]
[Round "5.20"]
[White "Novosel, Lovro"]
[Black "Svane, Frederik"]
[Result "0-1"]
[ECO "E15"]
[WhiteElo "2373"]
[BlackElo "2625"]
[Annotator "TA"]
[PlyCount "92"]
[EventDate "2024.02.15"]
[EventType "team-tourn"]
[EventCountry "GER"]
[SourceTitle "playchess.com"]
[Source "ChessBase"]
[SourceQuality "1"]
[WhiteTeam "Croatia"]
[BlackTeam "Germany"]
[WhiteTeamCountry "CRO"]
[BlackTeamCountry "GER"]
[TimeControl "40/5400+30:1800+30"]

{[%evp 20,92,12,9,21,24,34,27,25,13,25,6,10,2,0,-3,-9,0,-7,-11,-3,-7,0,-15,0,-6,0,-24,-6,-28,-14,-8,-8,-8,-8,-27,-29,-33,-25,-41,-31,-31,-31,-33,-30,-29,-8,-8,-8,-12,-8,-8,-8,-8,-8,-8,0,-25,-25,-37,-37,-39,0,0,0,0,0,-8,0,-8,-8,-29987,-29988,-29988,-29989]} 1. d4 {[%emt 0:00:04]} Nf6 {[%emt 0:00:09]} 2. c4 {[%emt 0:00:09]} e6 {[%emt 0:00:05]} 3. g3 {[%emt 0:00:15]} Bb4+ {[%emt 0:00:32]} 4. Bd2 {[%emt 0:00:06]} Be7 {[%emt 0:00:08]} 5. Bg2 {[%emt 0:00:20]} d5 {[%emt 0:00:06]} 6. Nf3 {[%emt 0:00:09]} Nbd7 {[%emt 0:00:04]} 7. O-O {[%emt 0:01:02]} c6 {[%emt 0:00:07]} 8. Qc2 {[%emt 0:01:27]} b6 {[%emt 0:00:29]} 9. b3 {[%emt 0:04:47]} O-O {[%emt 0:00:55]} 10. Rd1 {[%emt 0:00:04]} Ba6 {[%emt 0:03:10]} 11. a4 {[%emt 0:00:38]} Ne4 {[%emt 0:01:08]} 12. Be1 {[%emt 0:05:05]} Rc8 {[%emt 0:00:47]} 13. e3 {[%emt 0:17:08]} f5 {[%emt 0:11:49] White has an edge.} 14. Nc3 {[%emt 0:04:51]} g5 {[%emt 0:05:38]} 15. Qb2 {[%emt 0:07:41]} Qe8 {[%emt 0:08:10]} 16. cxd5 {[%emt 0:03:01]} cxd5 {[%emt 0:11:20]} 17. Nb5 {[%emt 0:11:12]} Bxb5 {[%emt 0:12:55]} 18. axb5 {[%emt 0:00:08]} g4 {[%emt 0:00:08]} 19. Ne5 {[%emt 0:00:27]} Nxe5 {[%emt 0:00:35]} 20. dxe5 {[%emt 0:00:34]} Qxb5 {[%emt 0:06:25]} 21. Rxa7 {[%emt 0:01:03]} Rf7 {[%emt 0:01:28]} 22. h3 {[%emt 0:17:08]} h5 {[%emt 0:13:58]} 23. Rda1 {[%emt 0:08:02]} Qc6 {[%emt 0:17:34]} 24. b4 {[%emt 0:06:04]} gxh3 {[%emt 0:01:15]} 25. Bxh3 {[%emt 0:00:46]} h4 {[%emt 0:00:27]} 26. gxh4 {[%emt 0:04:34]} Rg7+ {[%emt 0:00:39]} 27. Kh2 {[%emt 0:03:02]} Bxh4 {[%emt 0:01:16] White must now prevent ...Rxa7.} 28. Rxg7+ {[%emt 0:01:22]} Kxg7 {[%emt 0:00:00]} 29. Bg2 {[%emt 0:01:59]} Qc2 {[%emt 0:02:18]} 30. Qxc2 {[%emt 0:00:27]} Rxc2 {[%emt 0:00:01]} 31. f3 {[%emt 0:00:01][%csl LRe4,LRh4]} Bxe1 {[%emt 0:01:29]} 32. fxe4 $15 {[%emt 0:01:50][%mdl 4096] Endgame. KRB-KRB} Bc3 {[%emt 0:00:09]} 33. Ra7+ {[%emt 0:01:34]} Kg6 34. exd5 {[%emt 0:00:00]} Bxe5+ {[%emt 0:00:01]} 35. Kg1 {[%emt 0:00:00]} exd5 {[%emt 0:00:01]} 36. Rb7 {[%emt 0:00:00]} d4 {[%emt 0:00:13]} 37. Rxb6+ {[%emt 0:00:11]} Kg5 {[%emt 0:00:14]} 38. Re6 {[%emt 0:00:08]} Bf6 {[%emt 0:01:35]} 39. exd4 Bxd4+ {[%emt 0:00:01]} 40. Kh1 {[%emt 0:02:13]} Kf4 {[%emt 0:02:28]} 41. Bc6 {[%emt 0:05:45]} Rb2 {[%emt 0:03:01]} (41... Kg3 $5 42. Rg6+ $8 Kf4 $11) 42. b5 {[%emt 0:01:24]} Kg5 {[%emt 0:00:03]} 43. Re8 {[%emt 0:09:49]} f4 {[%emt 0:00:06]} 44. Rg8+ {[%emt 0:01:07]} Kh4 {[%emt 0:00:12]} 45. Rg2 $2 {[%emt 0:00:09][%mdl 8192]} (45. Bd7 $11) 45... Rb1+ {[%emt 0:00:05]} 46. Kh2 {[%emt 0:01:45] [#]} f3 $1 {[%emt 0:00:04][%mdl 512] Weighted Error Value: White=0.25 (precise) /Black=0.06 (flawless) .  Loses game:     	White=1     	---        Inaccurate:     	---       	Black=1      OK:         	White=17    	Black=13     Best:        	White=2     	Black=2} 0-1

[Event "Mitropa Cup Open 2024"]
[Site "Apolda"]
[Date "2024.02.20"]
[Round "6.1"]
[White "Krstulovic, Alex"]
[Black "Baidetskyi, Valentin"]
[Result "1/2-1/2"]
[ECO "E90"]
[WhiteElo "2414"]
[BlackElo "2499"]
[Annotator "TA"]
[PlyCount "87"]
[EventDate "2024.02.15"]
[EventType "team-tourn"]
[EventCountry "GER"]
[SourceTitle "playchess.com"]
[Source "ChessBase"]
[SourceQuality "1"]
[WhiteTeam "Hungary"]
[BlackTeam "Austria"]
[WhiteTeamCountry "HUN"]
[BlackTeamCountry "AUT"]
[TimeControl "40/5400+30:1800+30"]

{[%evp 11,87,38,27,23,46,43,50,41,38,16,4,10,34,32,34,30,31,29,27,35,28,38,24,31,25,23,29,33,55,54,37,47,47,67,67,68,70,52,95,91,118,108,176,172,177,177,177,175,171,180,250,223,231,191,177,131,126,46,40,27,185,189,201,180,174,177,146,166,172,136,137,137,133,101,95,0,0,0]} 1. d4 {[%emt 0:00:03]} Nf6 {[%emt 0:00:05]} 2. c4 {[%emt 0:00:10]} g6 {[%emt 0:00:04]} 3. Nc3 {[%emt 0:00:03]} Bg7 {[%emt 0:00:01]} 4. e4 {[%emt 0:00:06]} d6 {[%emt 0:00:02]} 5. Nf3 {[%emt 0:00:05]} O-O {[%emt 0:00:04]} 6. Bd3 {[%emt 0:00:04]} Bg4 {[%emt 0:03:32]} 7. Be2 {[%emt 0:00:17]} Bxf3 {[%emt 0:00:02]} 8. Bxf3 {[%emt 0:00:06]} Nfd7 {[%emt 0:00:42]} 9. Be3 {[%emt 0:00:17] White is slightly better.} Nc6 {[%emt 0:01:59]} 10. d5 {[%emt 0:00:41] Black is weak on the light squares} Na5 {[%emt 0:00:35]} 11. Be2 {[%emt 0:01:24]} Nb6 {[%emt 0:05:59]} 12. Bd4 $1 {[%emt 0:00:34]} Bxd4 {[%emt 0:01:34]} 13. Qxd4 {[%emt 0:00:02]} c5 {[%emt 0:00:01]} 14. dxc6 {[%emt 0:00:12]} e5 {[%emt 0:00:03]} 15. Qe3 {[%emt 0:01:08]} bxc6 {[%emt 0:34:22]} 16. c5 {[%emt 0:00:18]} dxc5 {[%emt 0:01:33]} 17. Qxc5 {[%emt 0:02:07]} Nd7 {[%emt 0:00:30]} 18. Qa3 {[%emt 0:10:04]} Nb7 {[%emt 0:15:22]} 19. Rd1 {[%emt 0:11:27]} Qe8 {[%emt 0:00:11]} 20. Na4 {[%emt 0:03:41]} Nb6 {[%emt 0:01:28]} 21. Nc5 {[%emt 0:02:51]} Nxc5 {[%emt 0:01:04]} 22. Qxc5 {[%emt 0:00:07]} Qe6 {[%emt 0:00:08]} 23. b3 $1 {[%emt 0:01:26] White has more active pieces.} Rfd8 {[%emt 0:00:30] Against Rd6} 24. O-O {[%emt 0:00:57][%cal Bh1f1,Bf1c1,Bc1c6][%mdl 32]} Qf6 {[%emt 0:00:35]} 25. Ba6 {[%emt 0:06:48]} Rd7 {[%emt 0:12:48]} 26. a4 {[%emt 0:05:58][%cal Ba2a4,Ba4a5][%mdl 32]} Rad8 {[%emt 0:03:11]} (26... Qe6 $16) 27. Rxd7 $18 {[%emt 0:00:14]} Rxd7 {[%emt 0:00:04]} 28. a5 {[%emt 0:00:12]} Na8 {[%emt 0:00:05][%cal Bb6a8,Ba8c7,Bc7e6,Be6d4][%mdl 32]} 29. Rc1 {[%emt 0:01:23]} Nc7 {[%emt 0:05:50]} 30. Qxa7 {[%emt 0:05:03] And now Bf1 would win.} (30. Qxc6 Qxc6 31. Rxc6 Nxa6 $19) 30... Rd2 {[%emt 0:03:30]} (30... Qd8 {is a better defense.} 31. Bf1 (31. Rxc6 $2 Rd1+ 32. Bf1 Rxf1+ 33. Kxf1 Qd1#) 31... Ne6) 31. Bf1 {[%emt 0:07:25]} (31. Qxc7 $2 Qxf2+ 32. Kh1 Qxg2#) 31... Ne6 {[%emt 0:00:16]} 32. Rxc6 {[%emt 0:07:22] Hoping for a6.} Rd1 {[%emt 0:00:07]} 33. Qe3 {[%emt 0:00:55] Repels Nf4} (33. g3 $18 Kg7 34. Qe3) 33... Qd8 $16 {[%emt 0:00:10][%cal Oe6d4]} 34. b4 {[%emt 0:10:16]} (34. Rc1 $1 $16 {[%cal Rc1d1]} Rxc1 35. Qxc1 Qxa5 36. Qc4) 34... Nd4 $14 {[%emt 0:00:08]} 35. Rc5 {[%emt 0:00:38][%cal Og2g3]} Qd6 $2 {[%emt 0:01:36]} (35... Qb8 $11 {and Black stays safe.} 36. b5 Qd6) 36. g3 $1 $18 {[%emt 0:07:37] aiming for Kg2.} Qa6 {[%emt 0:00:35][%csl Gd1][%cal Ra6f1]} 37. b5 $1 {[%emt 0:00:05]} Qxa5 {[%emt 0:00:09] Strongly threatening ...Qa1.} 38. Kg2 $1 {[%emt 0:03:10][%cal Oe3g5] Threatens to win with Qg5!} (38. Rxe5 $2 Qa1 39. Kg2 (39. Re8+ $2 Kg7 $19) 39... Rxf1 $19) 38... Kg7 {[%emt 0:06:53]} 39. Qg5 {[%emt 0:06:56]} f6 {[%emt 0:01:13]} 40. Qg4 {[%emt 0:00:14]} Rd2 {[%emt 0:02:58]} 41. Qd7+ {[%emt 0:32:40]} Kh6 {[%emt 0:00:22][%cal Od2f2] [#]} 42. Qh3+ $1 {[%emt 0:01:58]} (42. Rc7 Rxf2+ 43. Kh3 (43. Kxf2 {leads to mate.} Qd2+) 43... Nf3 $19 (43... Rxf1 44. Qxh7+ Kg5 45. Qh4#)) 42... Kg7 {[%emt 0:00:13] [#]} 43. Qd7+ {[%emt 0:02:16]} ({Better is} 43. Rc8 $1 $16 Qa7 44. Bc4) 43... Kh6 $11 {[%emt 0:00:12][%cal Od2f2]} 44. Qh3+ {[%emt 0:03:10] Weighted Error Value: White=0.10 (very precise) /Black=0.15 (very precise) .  Mistake:       	White=3     	Black=3      Inaccurate:     	---       	Black=1      OK:         	White=13    	Black=14     Best:        	White=3     	Black=9      Strong:       	White=6     	---} 1/2-1/2

[Event "Mitropa Cup Open 2024"]
[Site "Apolda"]
[Date "2024.02.20"]
[Round "6.2"]
[White "Peyrer, Konstantin"]
[Black "Juhasz, Agoston"]
[Result "1-0"]
[ECO "A16"]
[WhiteElo "2439"]
[BlackElo "2410"]
[Annotator "RC"]
[PlyCount "103"]
[EventDate "2024.02.15"]
[EventType "team-tourn"]
[EventCountry "GER"]
[SourceTitle "playchess.com"]
[Source "ChessBase"]
[SourceQuality "1"]
[WhiteTeam "Austria"]
[BlackTeam "Hungary"]
[WhiteTeamCountry "AUT"]
[BlackTeamCountry "HUN"]
[TimeControl "40/5400+30:1800+30"]

1. Nf3 {[%emt 0:00:08]} Nf6 {[%emt 0:00:23]} 2. c4 {[%emt 0:00:09]} g6 {[%emt 0:00:31]} 3. Nc3 {[%emt 0:00:13]} Bg7 {[%emt 0:00:14]} 4. e4 {[%emt 0:00:08]} e5 {[%emt 0:00:07]} 5. Nxe5 {[%emt 0:00:06]} O-O {[%emt 0:00:06]} 6. d3 {[%emt 0:01:48]} Nxe4 {[%emt 0:01:21]} 7. dxe4 {[%emt 0:00:08]} Bxe5 {[%emt 0:00:02]} 8. Be3 {[%emt 0:00:13]} d6 {[%emt 0:05:01]} 9. Qd2 {[%emt 0:00:33]} Nd7 {[%emt 0:17:50]} 10. Be2 {[%emt 0:06:22]} Nf6 {[%emt 0:03:01]} 11. f3 {[%emt 0:02:59]} c6 {[%emt 0:10:47]} 12. O-O {[%emt 0:01:10]} d5 {[%emt 0:20:36]} 13. cxd5 {[%emt 0:01:24]} cxd5 {[%emt 0:00:05]} 14. Nxd5 {[%emt 0:15:42]} Nxd5 {[%emt 0:00:42]} 15. exd5 {[%emt 0:02:33]} Qf6 {[%emt 0:03:00]} 16. Rad1 {[%emt 0:15:27]} Bxb2 {[%emt 0:02:28]} 17. Bg5 {[%emt 0:10:14]} Qc3 {[%emt 0:03:21]} 18. Be7 {[%emt 0:04:13]} Re8 {[%emt 0:00:31]} 19. Qxc3 {[%emt 0:00:07]} Bxc3 {[%emt 0:00:03]} 20. d6 {[%emt 0:00:05]} Bd7 {[%emt 0:01:36]} 21. f4 {[%emt 0:08:19]} Rac8 {[%emt 0:10:09]} 22. f5 {[%emt 0:05:38]} gxf5 {[%emt 0:00:35]} 23. Rd5 {[%emt 0:04:05]} Bg7 {[%emt 0:08:41]} 24. Bb5 {[%emt 0:01:28]} Bxb5 {[%emt 0:04:56]} 25. Rxb5 {[%emt 0:00:06]} Bf8 {[%emt 0:00:54]} 26. d7 {[%emt 0:00:52]} Bxe7 {[%emt 0:00:36]} 27. Rxb7 {[%emt 0:00:21]} Bc5+ {[%emt 0:01:01]} 28. Kh1 {[%emt 0:00:04]} Rcd8 {[%emt 0:01:27]} 29. dxe8=Q+ {[%emt 0:00:10]} Rxe8 {[%emt 0:00:03]} 30. g3 {[%emt 0:00:44]} Re5 {[%emt 0:04:51]} 31. Rb5 {[%emt 0:01:17]} f6 {[%emt 0:00:21]} 32. Rc1 {[%emt 0:00:24]} Be3 {[%emt 0:00:33]} 33. Rxe5 {[%emt 0:03:22]} fxe5 {[%emt 0:00:02]} 34. Rc7 {[%emt 0:00:06]} f4 {[%emt 0:01:04]} 35. gxf4 {[%emt 0:00:30]} exf4 {[%emt 0:00:08]} 36. Kg2 {[%emt 0:00:04]} Bb6 {[%emt 0:00:50]} 37. Rb7 {[%emt 0:00:08]} Be3 {[%emt 0:00:24]} 38. Kf3 {[%emt 0:00:06]} Kh8 {[%emt 0:00:20]} 39. h4 {[%emt 0:00:30]} Kg8 {[%emt 0:00:27]} 40. h5 {[%emt 0:00:44]} h6 {[%emt 0:00:44]} 41. a4 {[%emt 0:31:47]} Kh8 {[%emt 0:30:31]} 42. a5 {[%emt 0:01:14]} Kg8 {[%emt 0:00:16]} 43. a6 {[%emt 0:00:36]} Kh8 {[%emt 0:00:29]} 44. Rc7 {[%emt 0:01:07]} Kg8 {[%emt 0:00:14]} 45. Ke4 {[%emt 0:01:47]} Kh8 {[%emt 0:00:43]} 46. Kf5 {[%emt 0:00:37]} Kg8 {[%emt 0:00:42]} 47. Kg6 {[%emt 0:00:50]} Kf8 {[%emt 0:00:03]} 48. Kxh6 {[%emt 0:00:33]} f3+ {[%emt 0:00:48]} 49. Kg6 {[%emt 0:00:05]} f2 {[%emt 0:00:41]} 50. Rf7+ {[%emt 0:00:05]} Ke8 {[%emt 0:00:10]} 51. Rf3 {[%emt 0:00:04]} Kd7 {[%emt 0:00:52]} 52. h6 {[%emt 0:00:06]} 1-0